fUSD/lending_fUSD_20250111
["ID","MTS","AMOUNT","RATE_DAILY","PERIOD"]
[348581282,1736635838127,-500.0,9.999e-05,2]
[348581283,1736635838136,-500.0,9.999e-05,2]
[348581284,1736635838145,-500.0,9.999e-05,2]
[348581285,1736635838155,-613.48,9.999e-05,2]
[348581286,1736635838164,-500.0,9.999e-05,2]
[348581287,1736635838173,-500.0,9.999e-05,2]
[348581288,1736635838182,-500.0,9.999e-05,2]
[348581289,1736635838192,-500.0,9.999e-05,2]
[348581290,1736635838201,-500.0,9.999e-05,2]
[348581291,1736635838211,-500.0,9.999e-05,2]
[348581292,1736635838220,-500.0,9.999e-05,2]
[348581293,1736635838229,-500.0,9.999e-05,2]
[348581294,1736635838239,-453.8133976,9.999e-05,2]
[348581295,1736635838255,-46.1866024,9.999e-05,2]
[348581296,1736635838265,-500.0,9.999e-05,2]
[348581297,1736635838275,-500.0,9.999e-05,2]
[348581298,1736635838284,-500.0,9.999e-05,2]
[348581299,1736635838294,-500.0,9.999e-05,2]
[348581300,1736635838304,-500.0,9.999e-05,2]
[348581301,1736635838314,-502.03997264,9.999e-05,2]
[348581302,1736635838325,-500.0,9.999e-05,2]
[348581303,1736635838334,-500.0,9.999e-05,2]
[348581304,1736635838344,-500.0,9.999e-05,2]
[348581305,1736635838353,-500.0,9.999e-05,2]
[348581306,1736635838365,-500.0,9.999e-05,2]
[348581307,1736635838375,-500.0,9.999e-05,2]
[348581308,1736635838384,-500.0,9.999e-05,2]
[348581309,1736635838393,-500.0,9.999e-05,2]
[348581310,1736635838404,-500.0,9.999e-05,2]
[348581311,1736635838413,-500.0,9.999e-05,2]
[348581312,1736635838422,-500.0,9.999e-05,2]
[348581313,1736635838431,-500.0,9.999e-05,2]
[348581314,1736635838440,-500.0,9.999e-05,2]
[348581315,1736635838450,-500.0,9.999e-05,2]
[348581316,1736635838459,-500.0,9.999e-05,2]
[348581317,1736635838468,-500.0,9.999e-05,2]
[348581318,1736635838477,-500.0,9.999e-05,2]
[348581319,1736635838487,-500.0,9.999e-05,2]
[348581320,1736635838496,-500.0,9.999e-05,2]
[348581321,1736635838506,-500.0,9.999e-05,2]
[348581322,1736635838515,-500.0,9.999e-05,2]
[348581323,1736635838524,-500.0,9.999e-05,2]
[348581324,1736635838533,-500.0,9.999e-05,2]
[348581325,1736635838542,-500.0,9.999e-05,2]
[348581326,1736635838552,-500.0,9.999e-05,2]
[348581327,1736635838561,-500.0,9.999e-05,2]
[348581328,1736635838570,-500.0,9.999e-05,2]
[348581329,1736635838579,-500.0,9.999e-05,2]
[348581330,1736635838587,-500.0,9.999e-05,2]
[348581331,1736635838597,-399.78395961,9.999e-05,2]
[348581332,1736635838607,-500.0,9.999e-05,2]
[348581333,1736635838616,-500.0,9.999e-05,2]
[348581334,1736635838625,-500.0,9.999e-05,2]
[348581335,1736635838635,-229.53452808,9.999e-05,2]
[348581336,1736635838663,-92.59995059,9.999e-05,2]
[348581337,1736635838876,-500.0,9.999e-05,2]
[348581338,1736635838886,-500.0,9.999e-05,2]
[348581339,1736635838895,-500.0,9.999e-05,2]
[348581340,1736635838905,-500.0,9.999e-05,2]
[348581341,1736635838914,-500.0,9.999e-05,2]
[348581342,1736635838923,-500.0,9.999e-05,2]
[348581343,1736635838932,-500.0,9.999e-05,2]
[348581344,1736635838941,-500.0,9.999e-05,2]
[348581345,1736635838950,-500.0,9.999e-05,2]
[348581346,1736635838959,-500.0,9.999e-05,2]
[348581347,1736635838967,-500.0,9.999e-05,2]
[348581348,1736635838977,-500.0,9.999e-05,2]
[348581349,1736635838987,-500.0,9.999e-05,2]
[348581350,1736635838996,-500.0,9.999e-05,2]
[348581351,1736635839005,-500.0,9.999e-05,2]
[348581352,1736635839015,-500.0,9.999e-05,2]
[348581353,1736635839024,-500.0,9.999e-05,2]
[348581354,1736635839033,-500.0,9.999e-05,2]
[348581355,1736635839042,-500.0,9.999e-05,2]
[348581356,1736635839052,-500.0,9.999e-05,2]
[348581357,1736635839061,-500.0,9.999e-05,2]
[348581358,1736635839070,-259.49394404,9.999e-05,2]
[348581359,1736635839082,-240.50605596,9.999e-05,2]
[348581360,1736635839091,-98.39038404,9.999e-05,2]
[348581361,1736635839103,-401.60961596,9.999e-05,2]
[348581362,1736635839113,-500.0,9.999e-05,2]
[348581363,1736635839122,-500.0,9.999e-05,2]
[348581364,1736635839134,-393.89364427,9.999e-05,2]
[348581365,1736635839176,-500.0,9.998e-05,2]
[348581366,1736635839185,-500.0,9.998e-05,2]
[348581367,1736635839195,-106.10635573,9.999e-05,2]
[348581368,1736635839204,-500.0,9.999e-05,2]
[348581369,1736635839213,-500.0,9.999e-05,2]
[348581370,1736635839222,-421.75354365,9.999e-05,2]
[348581379,1736635839941,-78.24645635,9.999e-05,2]
[348581380,1736635839951,-500.0,9.999e-05,2]
[348581381,1736635839960,-283.99781794,9.999e-05,2]
[348581382,1736635839971,-216.00218206,9.999e-05,2]
[348581383,1736635839981,-500.0,9.999e-05,2]
[348581384,1736635839990,-296.13519841,9.999e-05,2]
[348581385,1736635840001,-203.86480159,9.999e-05,2]
[348581386,1736635840010,-500.0,9.999e-05,2]
[348581387,1736635840020,-500.0,9.999e-05,2]
[348581388,1736635840029,-500.0,9.999e-05,2]
[348581389,1736635840039,-214.27394841,9.999e-05,2]
[348581390,1736635840051,-268.12099998,9.999e-05,2]
[348581391,1736635840062,-17.60505161,9.999e-05,2]
[348581392,1736635840071,-500.0,9.999e-05,2]
[348581393,1736635840080,-202.56144861,9.999e-05,2]
[348581394,1736635840091,-297.43855139,9.999e-05,2]
[348581395,1736635840101,-500.0,9.999e-05,2]
[348581396,1736635840110,-500.0,9.999e-05,2]
[348581397,1736635840119,-500.0,9.999e-05,2]
[348581398,1736635840128,-500.0,9.999e-05,2]
[348581399,1736635840136,-500.0,9.999e-05,2]
[348581400,1736635840146,-500.0,9.999e-05,2]
[348581401,1736635840155,-543.7685035,9.999e-05,2]
[348581402,1736635840164,-500.0,9.999e-05,2]
[348581403,1736635840173,-500.0,9.999e-05,2]
[348581404,1736635840183,-500.0,9.999e-05,2]
[348581405,1736635840192,-500.0,9.999e-05,2]
[348581406,1736635840202,-500.0,9.999e-05,2]
[348581407,1736635840211,-500.0,9.999e-05,2]
[348581408,1736635840221,-500.0,9.999e-05,2]
[348581409,1736635840230,-500.0,9.999e-05,2]
[348581410,1736635840239,-500.0,9.999e-05,2]
[348581411,1736635840249,-500.0,9.999e-05,2]
[348581412,1736635840259,-500.0,9.999e-05,2]
[348581413,1736635840268,-137.09294511,9.999e-05,2]
[348581414,1736635840281,-362.90705489,9.999e-05,2]
[348581415,1736635840292,-500.0,9.999e-05,2]
[348581416,1736635840301,-500.0,9.999e-05,2]
[348581417,1736635840311,-500.0,9.999e-05,2]
[348581418,1736635840320,-500.0,9.999e-05,2]
[348581419,1736635840330,-500.0,9.999e-05,2]
[348581420,1736635840339,-500.0,9.999e-05,2]
[348581421,1736635840348,-546.29154423,9.999e-05,2]
[348581422,1736635840358,-500.0,9.999e-05,2]
[348581423,1736635840371,-500.0,9.999e-05,2]
[348581424,1736635840380,-500.0,9.999e-05,2]
[348581425,1736635840390,-500.0,9.999e-05,2]
[348581426,1736635840399,-500.0,9.999e-05,2]
[348581427,1736635840409,-500.0,9.999e-05,2]
[348581428,1736635840418,-500.0,9.999e-05,2]
[348581429,1736635840428,-500.0,9.999e-05,2]
[348581430,1736635840438,-500.0,9.999e-05,2]
[348581431,1736635840447,-500.0,9.999e-05,2]
[348581432,1736635840456,-500.0,9.999e-05,2]
[348581433,1736635840466,-500.0,9.999e-05,2]
[348581434,1736635840476,-500.0,9.999e-05,2]
[348581435,1736635840486,-500.0,9.999e-05,2]
[348581436,1736635840495,-500.0,9.999e-05,2]
[348581437,1736635840504,-500.0,9.999e-05,2]
[348581438,1736635840514,-500.0,9.999e-05,2]
[348581439,1736635840523,-500.0,9.999e-05,2]
[348581440,1736635840532,-500.0,9.999e-05,2]
[348581441,1736635840541,-500.0,9.999e-05,2]
[348581442,1736635840551,-500.0,9.999e-05,2]
[348581443,1736635840560,-500.0,9.999e-05,2]
[348581444,1736635840569,-500.0,9.999e-05,2]
[348581445,1736635840578,-500.0,9.999e-05,2]
[348581446,1736635840587,-500.0,9.999e-05,2]
[348581447,1736635840596,-500.0,9.999e-05,2]
[348581448,1736635840605,-500.0,9.999e-05,2]
[348581449,1736635840615,-500.0,9.999e-05,2]
[348581450,1736635840624,-500.0,9.999e-05,2]
[348581451,1736635840633,-500.0,9.999e-05,2]
[348581452,1736635840643,-500.0,9.999e-05,2]
[348581453,1736635840652,-500.0,9.999e-05,2]
[348581454,1736635840661,-500.0,9.999e-05,2]
[348581455,1736635840670,-500.0,9.999e-05,2]
[348581456,1736635840679,-500.0,9.999e-05,2]
[348581457,1736635840688,-500.0,9.999e-05,2]
[348581458,1736635840698,-500.0,9.999e-05,2]
[348581459,1736635840707,-500.0,9.999e-05,2]
[348581460,1736635840716,-500.0,9.999e-05,2]
[348581461,1736635840727,-500.0,9.999e-05,2]
[348581462,1736635840736,-500.0,9.999e-05,2]
[348581463,1736635840746,-500.0,9.999e-05,2]
[348581464,1736635840756,-114.70789419,9.999e-05,2]
[348581465,1736635840769,-385.29210581,9.999e-05,2]
[348581466,1736635840780,-500.0,9.999e-05,2]
[348581467,1736635840790,-500.0,9.999e-05,2]
[348581468,1736635840799,-500.0,9.999e-05,2]
[348581469,1736635840810,-500.0,9.999e-05,2]
[348581470,1736635840819,-500.0,9.999e-05,2]
[348581471,1736635840829,-500.0,9.999e-05,2]
[348581472,1736635840838,-500.0,9.999e-05,2]
[348581473,1736635840848,-500.0,9.999e-05,2]
[348581474,1736635840857,-500.0,9.999e-05,2]
[348581475,1736635840867,-500.0,9.999e-05,2]
[348581476,1736635840876,-500.0,9.999e-05,2]
[348581477,1736635840887,-500.0,9.999e-05,2]
[348581478,1736635840896,-500.0,9.999e-05,2]
[348581479,1736635840905,-500.0,9.999e-05,2]
[348581480,1736635840914,-500.0,9.999e-05,2]
[348581481,1736635840923,-500.0,9.999e-05,2]
[348581482,1736635840932,-500.0,9.999e-05,2]
[348581483,1736635840942,-500.0,9.999e-05,2]
[348581484,1736635840951,-500.0,9.999e-05,2]
[348581485,1736635840960,-500.0,9.999e-05,2]
[348581486,1736635840970,-500.0,9.999e-05,2]
[348581487,1736635840979,-500.0,9.999e-05,2]
[348581488,1736635840989,-500.0,9.999e-05,2]
[348581489,1736635841000,-500.0,9.999e-05,2]
[348581490,1736635841009,-500.0,9.999e-05,2]
[348581491,1736635841019,-500.0,9.999e-05,2]
[348581492,1736635841028,-500.0,9.999e-05,2]
[348581493,1736635841037,-500.0,9.999e-05,2]
[348581494,1736635841046,-500.0,9.999e-05,2]
[348581495,1736635841055,-500.0,9.999e-05,2]
[348581496,1736635841064,-500.0,9.999e-05,2]
[348581497,1736635841073,-500.0,9.999e-05,2]
[348581498,1736635841084,-500.0,9.999e-05,2]
[348581499,1736635841093,-500.0,9.999e-05,2]
[348581500,1736635841102,-500.0,9.999e-05,2]
[348581501,1736635841112,-500.0,9.999e-05,2]
[348581502,1736635841124,-500.0,9.999e-05,2]
[348581503,1736635841133,-500.0,9.999e-05,2]
[348581504,1736635841143,-500.0,9.999e-05,2]
[348581505,1736635841153,-500.0,9.999e-05,2]
[348581506,1736635841162,-500.0,9.999e-05,2]
[348581507,1736635841173,-500.0,9.999e-05,2]
[348581508,1736635841183,-500.0,9.999e-05,2]
[348581509,1736635841193,-500.0,9.999e-05,2]
[348581510,1736635841203,-500.0,9.999e-05,2]
[348581511,1736635841212,-500.0,9.999e-05,2]
[348581512,1736635841221,-500.0,9.999e-05,2]
[348581513,1736635841231,-500.0,9.999e-05,2]
[348581514,1736635841240,-500.0,9.999e-05,2]
[348581515,1736635841249,-500.0,9.999e-05,2]
[348581516,1736635841258,-500.0,9.999e-05,2]
[348581517,1736635841267,-500.0,9.999e-05,2]
[348581518,1736635841276,-543.05875418,9.999e-05,2]
[348581519,1736635841286,-500.0,9.999e-05,2]
[348581520,1736635841296,-500.0,9.999e-05,2]
[348581521,1736635841306,-500.0,9.999e-05,2]
[348581522,1736635841315,-500.0,9.999e-05,2]
[348581523,1736635841325,-656.9,9.999e-05,2]
[348581524,1736635841334,-500.0,9.999e-05,2]
[348581525,1736635841343,-607.03628571,9.999e-05,2]
[348581526,1736635841352,-150.0,9.999e-05,2]
[348581527,1736635841362,-500.0,9.999e-05,2]
[348581528,1736635841372,-500.0,9.999e-05,2]
[348581529,1736635841381,-500.0,9.999e-05,2]
[348581530,1736635841390,-500.0,9.999e-05,2]
[348581531,1736635841399,-500.0,9.999e-05,2]
[348581532,1736635841408,-500.0,9.999e-05,2]
[348581533,1736635841417,-500.0,9.999e-05,2]
[348581534,1736635841427,-709.42,9.999e-05,2]
[348581535,1736635841436,-500.0,9.999e-05,2]
[348581536,1736635841446,-516.61090775,9.999e-05,2]
[348581537,1736635841455,-500.0,9.999e-05,2]
[348581538,1736635841465,-500.0,9.999e-05,2]
[348581539,1736635841475,-500.0,9.999e-05,2]
[348581540,1736635841485,-500.0,9.999e-05,2]
[348581541,1736635841495,-500.0,9.999e-05,2]
[348581542,1736635841506,-500.0,9.999e-05,2]
[348581543,1736635841515,-500.0,9.999e-05,2]
[348581544,1736635841525,-500.0,9.999e-05,2]
[348581545,1736635841535,-500.0,9.999e-05,2]
[348581546,1736635841546,-500.0,9.999e-05,2]
[348581547,1736635841555,-500.0,9.999e-05,2]
[348581548,1736635841564,-500.0,9.999e-05,2]
[348581549,1736635841574,-500.0,9.999e-05,2]
[348581550,1736635841585,-500.0,9.999e-05,2]
[348581551,1736635841594,-500.0,9.999e-05,2]
[348581552,1736635841603,-500.0,9.999e-05,2]
[348581553,1736635841613,-500.0,9.999e-05,2]
[348581554,1736635841622,-500.0,9.999e-05,2]
[348581555,1736635841631,-503.24409583,9.999e-05,2]
[348581556,1736635841642,-500.0,9.999e-05,2]
[348581557,1736635841651,-500.0,9.999e-05,2]
[348581558,1736635841660,-1098.67,9.999e-05,2]
[348581559,1736635841668,-500.0,9.999e-05,2]
[348581560,1736635841679,-500.0,9.999e-05,2]
[348581561,1736635841689,-500.0,9.999e-05,2]
[348581562,1736635841699,-855.57,9.999e-05,2]
[348581563,1736635841710,-1347.33,9.999e-05,2]
[348581564,1736635841720,-1079.6,9.999e-05,2]
[348581565,1736635841730,-13635.89056272,0.0001,2]
[348581566,1736635841750,-8879.7612,0.0001,2]
[348581567,1736635841761,-1746.08478578,0.0001,2]
[348581568,1736635841772,-7053.26151959,0.0001,2]
[348581569,1736635841798,-378.00513087,0.0001,2]
[348581570,1736635841983,-673.91324,0.0001,2]
[348581571,1736635842001,-18546.6103854,0.0001,2]
[348581572,1736635842012,-16726.73742979,0.0001,2]
[348581573,1736635842023,-566.74565339,0.0001,2]
[348581574,1736635842036,-344.95698475,0.0001,2]
[348581575,1736635842048,-13831.86760727,0.0001,2]
[348581576,1736635842066,-722.1506333,0.0001,2]
[348581584,1736635842483,-500.0,9.998e-05,2]
[348581585,1736635842493,-201.666667,0.0001,2]
[348581586,1736635842504,-338.4250005,0.0001,2]
[348581587,1736635842515,-1053.4500145,0.0001,2]
[348581589,1736635842598,-792.83061176,0.0001,2]
[348581590,1736635842611,-27484.5997021,0.0001,2]
[348581591,1736635842623,-489.29187735,0.0001,2]
[348581594,1736635842809,-2914.44,0.0001,2]
[348581597,1736635842861,-958.81148113,0.0001,2]
[348581598,1736635842873,-1362.60514686,0.0001,2]
[348581599,1736635842885,-1006.62630079,0.0001,2]
[348581600,1736635842896,-352.72799642,0.0001,2]
[348581601,1736635842908,-56464.914136,0.0001,2]
[348581602,1736635842928,-930.65114849,0.0001,2]
[348581603,1736635842939,-2547.91315279,0.0001,2]
[348581613,1736635845805,-540.441375,9.997e-05,2]
[348581614,1736635845818,-394.72,9.997e-05,2]
[348581615,1736635845829,-853.05,9.997e-05,2]
[348581616,1736635845843,-704.82880413,9.997e-05,2]
[348581617,1736635845856,-234.06982087,9.997e-05,2]
[348581619,1736635845865,-500.0,9.998e-05,2]
[348581621,1736635845875,-482.03017913,9.998e-05,2]
[348581624,1736635845901,-17.96982087,9.998e-05,2]
[348581625,1736635845911,-500.0,9.998e-05,2]
[348581626,1736635845920,-1455.20477337,0.0001,2]
[348581627,1736635845934,-274409.32258183,0.0001,2]
[348581628,1736635845959,-77945.28741463,0.0001,2]
[348581629,1736635845971,-271595.62376834,0.0001,2]
[348581630,1736635915159,500.0,8.464e-05,2]
[348581631,1736636318186,492.65,8.219e-05,2]
[348581660,1736637031911,-1500.0,8.97e-05,2]
[348581661,1736637031921,-1000.0,9.016e-05,2]
[348581662,1736637031931,-250.0,9.067e-05,2]
[348581663,1736637031940,-250.0,9.103e-05,2]
[348581664,1736637031949,-437.85,9.172e-05,2]
[348581665,1736637031958,-633.81,9.178e-05,2]
[348581666,1736637031968,-368.6,9.193e-05,2]
[348581667,1736637031977,-316.46,9.236e-05,2]
[348581668,1736637031987,-300.0,9.292e-05,2]
[348581669,1736637031996,-23900.0,9.293e-05,2]
[348581670,1736637032005,-166.4,9.361e-05,2]
[348581671,1736637032014,-200.0,9.399e-05,2]
[348581672,1736637032023,-250.0,9.436e-05,2]
[348581673,1736637032032,-500.0,9.834e-05,2]
[348581674,1736637032042,-2033.5827,9.89e-05,2]
[348581675,1736637032052,-1701.7451,9.896e-05,2]
[348581676,1736637032061,-1456.7916,9.896e-05,2]
[348581677,1736637032070,-381.355,9.898e-05,2]
[348581678,1736637032079,-4720.5078,9.9e-05,2]
[348581679,1736637032088,-436.24,9.9e-05,2]
[348581680,1736637032098,-2679.84365176,9.973e-05,2]
[348581708,1736637037824,-1722.15634824,9.973e-05,2]
[348581709,1736637037833,-150.0,9.979e-05,2]
[348581710,1736637037843,-437.9,9.98e-05,2]
[348581711,1736637037853,-770.99,9.98e-05,2]
[348581712,1736637037862,-4409.32202678,9.99e-05,2]
[348581713,1736637038066,-2001.74037034,9.99e-05,2]
[348581714,1736637038077,-1033.09656952,9.99e-05,2]
[348581715,1736637038089,-444.71220788,9.99e-05,2]
[348581723,1736637039818,-1703.88529362,9.99e-05,2]
[348581724,1736637039866,-26506.64,9.99e-05,2]
[348581725,1736637039911,-755.96701987,9.99e-05,2]
[348581726,1736637039965,-16434.26436276,9.99e-05,2]
[348581727,1736637039977,-4055.43180006,9.99e-05,2]
[348581728,1736637040017,-1428.50840388,9.99e-05,2]
[348581729,1736637040149,-666.0,9.99e-05,2]
[348581761,1736637042767,-4803.08709633,9.99e-05,2]
[348581762,1736637042779,-512.00786555,9.99e-05,2]
[348581763,1736637042816,-4277.24137639,9.99e-05,2]
[348581764,1736637042827,-835.04991627,9.99e-05,2]
[348581765,1736637042838,-1053.199876,9.99e-05,2]
[348581766,1736637042869,-512.6900035,9.99e-05,2]
[348581767,1736637042881,-929.74280957,9.99e-05,2]
[348581768,1736637042905,-11190.27546747,9.99e-05,2]
[348581769,1736637043039,-282.22400001,9.99e-05,2]
[348581770,1736637043051,-311.7421292,9.99e-05,2]
[348581771,1736637043062,-269.38022628,9.99e-05,2]
[348581772,1736637043073,-362.05,9.99e-05,2]
[348581773,1736637045712,-42302.64246,9.99e-05,2]
[348581774,1736637045759,-857.69992783,9.99e-05,2]
[348581775,1736637045814,-12229.24955095,9.99e-05,2]
[348581776,1736637045826,-20995.18058348,9.99e-05,2]
[348581777,1736637045889,-16777.97762511,9.99e-05,2]
[348581778,1736637045901,-7058.99103135,9.99e-05,2]
[348581779,1736637045910,-1807.247,9.996e-05,2]
[348581780,1736637045920,-500.0,9.996e-05,2]
[348581781,1736637045929,-1128.88,9.996e-05,2]
[348581782,1736637045938,-1669.08,9.996e-05,2]
[348581783,1736637045947,-500.0,9.996e-05,2]
[348581784,1736637045956,-500.0,9.996e-05,2]
[348581785,1736637045965,-595.58,9.996e-05,2]
[348581786,1736637045975,-1167.72,9.996e-05,2]
[348581787,1736637045985,-500.0,9.996e-05,2]
[348581788,1736637045994,-500.0,9.996e-05,2]
[348581789,1736637046004,-500.0,9.996e-05,2]
[348581790,1736637046014,-500.0,9.996e-05,2]
[348581791,1736637046023,-500.0,9.996e-05,2]
[348581792,1736637046033,-1185.79,9.996e-05,2]
[348581793,1736637046042,-500.0,9.996e-05,2]
[348581794,1736637046052,-500.0,9.996e-05,2]
[348581795,1736637046061,-500.0,9.996e-05,2]
[348581796,1736637046072,-500.0,9.996e-05,2]
[348581797,1736637046081,-1529.4,9.996e-05,2]
[348581798,1736637046092,-500.0,9.996e-05,2]
[348581799,1736637046102,-500.0,9.996e-05,2]
[348581800,1736637046111,-500.0,9.996e-05,2]
[348581801,1736637046120,-514.43,9.996e-05,2]
[348581802,1736637046130,-500.0,9.996e-05,2]
[348581803,1736637046139,-59421.10817674,9.997e-05,4]
[348581804,1736637046158,-271.61868026,9.997e-05,4]
[348581805,1736637046169,-1000.0,9.997e-05,4]
[348581806,1736637046186,-2523.49422435,9.997e-05,4]
[348581807,1736637046197,-4921.03346622,9.997e-05,4]
[348581808,1736637068764,500.0,8.464e-05,2]
[348581809,1736637234437,468.01,8.219e-05,2]
[348581811,1736637449759,500.0,8.464e-05,2]
[348581812,1736637610679,500.0,8.464e-05,2]
[348581831,1736638141112,492.27,8.219e-05,2]
[348581838,1736638231932,-250.0,9.095e-05,2]
[348581840,1736638231941,-4035.18204876,9.133e-05,2]
[348581841,1736638231952,-5744.01086944,9.133e-05,2]
[348581842,1736638231963,-39.7670818,9.133e-05,2]
[348581843,1736638231972,-305.5677182,9.175e-05,2]
[348581844,1736638232048,-694.4322818,9.175e-05,2]
[348581845,1736638232057,-587.31,9.181e-05,2]
[348581846,1736638232066,-355.28,9.197e-05,2]
[348581847,1736638232075,-250.0,9.202e-05,2]
[348581848,1736638232083,-10732.84490902,9.298e-05,2]
[348581849,1736638232167,-1080.79234568,9.298e-05,2]
[348581850,1736638232178,-1028.79,9.298e-05,2]
[348581851,1736638232189,-290.54130537,9.298e-05,2]
[348581852,1736638232200,-10767.03143993,9.298e-05,2]
[348581853,1736638232209,-14802.73,9.323e-05,2]
[348581854,1736638232218,-437.9,9.341e-05,2]
[348581855,1736638232227,-772.13,9.341e-05,2]
[348581856,1736638232242,-162.26,9.414e-05,2]
[348581857,1736638232253,-150.0,9.54e-05,2]
[348581858,1736638232262,-772.13,9.541e-05,2]
[348581859,1736638232273,-437.9,9.541e-05,2]
[348581860,1736638232283,-500.0,9.834e-05,2]
[348581861,1736638232292,-150.0,9.836e-05,2]
[348581862,1736638232302,-978.7,9.836e-05,2]
[348581863,1736638232312,-1366.4688,9.896e-05,2]
[348581864,1736638232322,-263.3191146,9.973e-05,2]
[348581865,1736638232331,-3776.53082574,9.994e-05,2]
[348581866,1736638232341,-500.0,9.995e-05,2]
[348581867,1736638232359,-500.0,9.995e-05,2]
[348581868,1736638232380,-500.0,9.995e-05,2]
[348581870,1736638232398,-500.0,9.995e-05,2]
[348581872,1736638232407,-500.0,9.995e-05,2]
[348581874,1736638232417,-198.08264402,9.995e-05,2]
[348581876,1736638232428,-301.91735598,9.995e-05,2]
[348581878,1736638232437,-500.0,9.995e-05,2]
[348581880,1736638232447,-500.0,9.995e-05,2]
[348581882,1736638232456,-500.0,9.995e-05,2]
[348581884,1736638232465,-500.0,9.995e-05,2]
[348581886,1736638232475,-500.0,9.995e-05,2]
[348581887,1736638232484,-500.0,9.995e-05,2]
[348581888,1736638232493,-500.0,9.995e-05,2]
[348581889,1736638232502,-600.94,9.995e-05,2]
[348581890,1736638232511,-500.0,9.995e-05,2]
[348581891,1736638232521,-500.0,9.995e-05,2]
[348581892,1736638232530,-500.0,9.995e-05,2]
[348581893,1736638232539,-500.0,9.995e-05,2]
[348581894,1736638232548,-1056.53,9.995e-05,2]
[348581895,1736638232557,-500.0,9.995e-05,2]
[348581896,1736638232566,-500.0,9.995e-05,2]
[348581897,1736638232575,-500.0,9.995e-05,2]
[348581898,1736638232584,-1532.52,9.995e-05,2]
[348581899,1736638232594,-572.17,9.995e-05,2]
[348581900,1736638232603,-500.0,9.995e-05,2]
[348581901,1736638232612,-1792.21,9.995e-05,2]
[348581902,1736638232621,-772.99,9.995e-05,2]
[348581903,1736638232630,-1574.92,9.995e-05,2]
[348581904,1736638232639,-500.0,9.995e-05,2]
[348581905,1736638232648,-881.86,9.995e-05,2]
[348581906,1736638232657,-4240.66,9.995e-05,2]
[348581907,1736638232666,-500.0,9.995e-05,2]
[348581908,1736638232676,-1737.18,9.995e-05,2]
[348581909,1736638232685,-500.0,9.995e-05,2]
[348581910,1736638232694,-1737.18,9.995e-05,2]
[348581911,1736638232703,-538.64,9.995e-05,2]
[348581912,1736638232713,-1440.87,9.995e-05,2]
[348581913,1736638232722,-500.0,9.995e-05,2]
[348581914,1736638232731,-500.0,9.995e-05,2]
[348581915,1736638232741,-500.0,9.995e-05,2]
[348581916,1736638232750,-832.38,9.995e-05,2]
[348581917,1736638232759,-2822.26,9.995e-05,2]
[348581918,1736638232768,-500.0,9.995e-05,2]
[348581919,1736638232777,-799.27,9.995e-05,2]
[348581920,1736638232786,-729.019501,9.995e-05,2]
[348581921,1736638232795,-2400.51,9.995e-05,2]
[348581922,1736638232804,-500.0,9.995e-05,2]
[348581923,1736638232814,-696.57,9.995e-05,2]
[348581924,1736638232823,-1457.82,9.995e-05,2]
[348581925,1736638232832,-808.34,9.995e-05,2]
[348581926,1736638232842,-500.0,9.995e-05,2]
[348581927,1736638232851,-698.005905,9.995e-05,2]
[348581928,1736638232860,-610.52757178,9.995e-05,2]
[348581929,1736638232872,-1475.57242822,9.995e-05,2]
[348581930,1736638232882,-159.248968,9.995e-05,2]
[348581931,1736638232891,-500.0,9.995e-05,2]
[348581932,1736638232900,-1161.41,9.995e-05,2]
[348581933,1736638232909,-156.864309,9.995e-05,2]
[348581934,1736638232919,-1218.92,9.995e-05,2]
[348581935,1736638232929,-500.0,9.995e-05,2]
[348581936,1736638232938,-671.99,9.995e-05,2]
[348581937,1736638232947,-905.79,9.995e-05,2]
[348581938,1736638232957,-1940.72,9.995e-05,2]
[348581939,1736638232966,-1751.36,9.995e-05,2]
[348581940,1736638232975,-1657.38,9.995e-05,2]
[348581941,1736638232985,-500.0,9.995e-05,2]
[348581942,1736638232994,-500.0,9.995e-05,2]